[Event "FIDE WCCC Open-08 2024"]
[Site "Montesilvano"]
[Date "2024.11.23"]
[Round "8.23"]
[White "Muratshin, Ramazan"]
[Black "Ok, Miro"]
[Result "1-0"]
[ECO "B42"]
[WhiteElo "1597"]
[BlackElo "1656"]
[Annotator "NA RC"]
[PlyCount "131"]
[EventDate "2024.11.18"]
[EventType "swiss"]
[EventCountry "ITA"]
[SourceTitle "playchess.com"]
[Source "ChessBase"]
[SourceQuality "1"]
[TimeControl "5400+30"]

1. e4 {[%emt 0:00:02]} c5 {[%emt 0:02:05]} 2. Nf3 {[%emt 0:00:09]} e6 {[%emt 0:00:23]} 3. d4 {[%emt 0:00:06]} cxd4 {[%emt 0:00:24]} 4. Nxd4 {[%emt 0:00:05]} a6 {[%emt 0:00:10]} 5. Bd3 {[%emt 0:00:09]} Bc5 {[%emt 0:00:06]} 6. Nb3 {[%emt 0:00:17]} Be7 {[%emt 0:00:05]} 7. Nc3 {[%emt 0:00:20]} d6 {[%emt 0:00:15]} 8. O-O {[%emt 0:00:07]} Nd7 {[%emt 0:00:30]} 9. Qe2 {[%emt 0:00:38]} Ngf6 {[%emt 0:00:21]} 10. Bf4 {[%emt 0:00:46]} b5 {[%emt 0:00:39]} 11. Rad1 {[%emt 0:00:56]} O-O {[%emt 0:00:51]} 12. e5 {[%emt 0:00:35]} dxe5 {[%emt 0:01:12]} 13. Bxe5 {[%emt 0:00:08]} Qb6 {[%emt 0:01:10]} 14. Bd4 {[%emt 0:00:29]} Qc7 {[%emt 0:00:55]} 15. Rfe1 {[%emt 0:03:47]} Bb7 {[%emt 0:01:56]} 16. Ne4 {[%emt 0:01:11]} Nxe4 {[%emt 0:05:05]} 17. Bxe4 {[%emt 0:00:11]} Bxe4 {[%emt 0:00:36]} 18. Qxe4 {[%emt 0:00:22]} Nf6 {[%emt 0:08:01]} 19. Qe2 {[%emt 0:01:30]} Rac8 {[%emt 0:01:37]} 20. c3 {[%emt 0:00:12]} Rfd8 {[%emt 0:07:10]} 21. Qe5 {[%emt 0:01:00]} Qxe5 {[%emt 0:01:36]} 22. Bxe5 {[%emt 0:00:27]} Rd5 {[%emt 0:03:37]} 23. Bxf6 {[%emt 0:00:43]} Rxd1 {[%emt 0:01:00]} 24. Rxd1 {[%emt 0:00:06]} Bxf6 {[%emt 0:00:17]} 25. g3 {[%emt 0:00:12]} Rd8 {[%emt 0:00:42]} 26. Rxd8+ {[%emt 0:01:11]} Bxd8 {[%emt 0:00:13]} 27. Kf1 {[%emt 0:00:36]} Kf8 {[%emt 0:02:05]} 28. Nc5 {[%emt 0:00:20]} a5 {[%emt 0:01:00]} 29. Nb3 {[%emt 0:03:03]} Bb6 {[%emt 0:01:27]} 30. Ke2 {[%emt 0:02:23]} Ke7 {[%emt 0:02:48]} 31. Nd2 {[%emt 0:04:08]} f5 {[%emt 0:00:44]} 32. Nf3 {[%emt 0:01:27]} Kf6 {[%emt 0:02:34]} 33. Nd4 {[%emt 0:00:45]} Bxd4 {[%emt 0:01:04]} 34. cxd4 {[%emt 0:00:05]} e5 {[%emt 0:00:40]} 35. dxe5+ {[%emt 0:03:10]} Kxe5 {[%emt 0:00:28]} 36. Ke3 {[%emt 0:00:48]} g5 {[%emt 0:03:39]} 37. Kd3 {[%emt 0:02:12]} Kd5 {[%emt 0:02:16]} 38. Ke3 {[%emt 0:02:57]} Kc4 {[%emt 0:00:43]} 39. h3 {[%emt 0:01:23]} h6 {[%emt 0:04:23]} 40. f4 {[%emt 0:15:16]} Kd5 {[%emt 0:03:49]} 41. fxg5 {[%emt 0:02:29]} hxg5 {[%emt 0:00:19]} 42. h4 {[%emt 0:00:05]} f4+ {[%emt 0:02:50]} 43. Kf3 {[%emt 0:00:06]} fxg3 {[%emt 0:04:00]} 44. hxg5 {[%emt 0:00:11]} Ke5 {[%emt 0:03:05]} 45. Kxg3 {[%emt 0:01:11]} Kf5 {[%emt 0:00:19]} 46. Kf3 {[%emt 0:00:05]} Kxg5 {[%emt 0:01:28]} 47. Ke4 {[%emt 0:00:21]} a4 {[%emt 0:00:36]} 48. Kd4 {[%emt 0:00:52]} b4 {[%emt 0:00:15]} 49. Kc4 {[%emt 0:00:04]} a3 {[%emt 0:00:11]} 50. b3 {[%emt 0:00:03]} Kf4 {[%emt 0:00:11]} 51. Kxb4 {[%emt 0:00:20]} Ke5 {[%emt 0:00:05]} 52. Kxa3 {[%emt 0:00:06]} Kd6 {[%emt 0:00:04]} 53. Kb4 {[%emt 0:00:09]} Kc6 {[%emt 0:00:08]} 54. a4 {[%emt 0:00:08]} Kb6 {[%emt 0:00:04]} 55. a5+ {[%emt 0:00:05]} Ka6 {[%emt 0:00:07]} 56. Kc5 {[%emt 0:00:13]} Kb7 {[%emt 0:00:41]} 57. b4 {[%emt 0:00:19]} Ka7 {[%emt 0:00:08]} 58. b5 {[%emt 0:00:12]} Kb7 {[%emt 0:00:14]} 59. a6+ {[%emt 0:00:13]} Ka8 {[%emt 0:00:10]} 60. Kc6 {[%emt 0:00:17]} Kb8 {[%emt 0:00:19]} 61. b6 {[%emt 0:00:20]} Ka8 {[%emt 0:01:02]} 62. b7+ {[%emt 0:00:16]} Ka7 {[%emt 0:00:11]} 63. Kc7 {[%emt 0:00:05]} Kxa6 {[%emt 0:00:04]} 64. b8=Q {[%emt 0:00:10]} Ka5 {[%emt 0:00:03]} 65. Qb3 {[%emt 0:00:10]} Ka6 {[%emt 0:00:41]} 66. Qb6# {[%emt 0:00:36]} 1-0

[Event "FIDE WCCC Open-08 2024"]
[Site "Montesilvano"]
[Date "2024.11.23"]
[Round "8.24"]
[White "Nguyen Thanh San"]
[Black "Adilbek, Adinur"]
[Result "0-1"]
[ECO "D02"]
[WhiteElo "1493"]
[BlackElo "1651"]
[Annotator "NA RC"]
[PlyCount "60"]
[EventDate "2024.11.18"]
[EventType "swiss"]
[EventCountry "ITA"]
[SourceTitle "playchess.com"]
[Source "ChessBase"]
[SourceQuality "1"]
[TimeControl "5400+30"]

1. d4 {[%emt 0:00:52]} Nf6 {[%emt 0:00:09]} 2. Bf4 {[%emt 0:00:05]} d5 {[%emt 0:00:32]} 3. e3 {[%emt 0:00:12]} c5 {[%emt 0:00:04]} 4. Nf3 {[%emt 0:00:07]} Qb6 {[%emt 0:00:16]} 5. Nc3 {[%emt 0:00:38]} Bf5 {[%emt 0:02:59]} 6. Na4 {[%emt 0:03:12]} Qa5+ {[%emt 0:00:45]} 7. c3 {[%emt 0:00:23]} c4 {[%emt 0:07:16]} 8. b4 {[%emt 0:01:11]} Qd8 {[%emt 0:01:42]} 9. Nc5 {[%emt 0:02:34]} b6 {[%emt 0:01:35]} 10. Qa4+ {[%emt 0:00:39]} Bd7 {[%emt 0:02:51]} 11. Nxd7 {[%emt 0:00:05]} Qxd7 {[%emt 0:00:32]} 12. Qxd7+ {[%emt 0:00:49]} Nbxd7 {[%emt 0:00:15]} 13. a4 {[%emt 0:00:18]} e6 {[%emt 0:00:43]} 14. Be2 {[%emt 0:01:32]} Ne4 {[%emt 0:00:27]} 15. Rc1 {[%emt 0:01:06]} Nxc3 {[%emt 0:09:43]} 16. Rxc3 {[%emt 0:01:15]} Bxb4 {[%emt 0:00:50]} 17. Kd2 {[%emt 0:00:01]} Nf6 {[%emt 0:00:35]} 18. Kc2 {[%emt 0:05:17]} Ne4 {[%emt 0:04:25]} 19. Rb1 {[%emt 0:15:20]} Bxc3 {[%emt 0:01:17]} 20. Ng5 {[%emt 0:17:42]} Nxg5 {[%emt 0:02:22]} 21. Bxg5 {[%emt 0:00:23]} Ba5 {[%emt 0:00:15]} 22. e4 {[%emt 0:02:11]} O-O {[%emt 0:02:58]} 23. exd5 {[%emt 0:01:04]} exd5 {[%emt 0:01:07]} 24. Bf3 {[%emt 0:00:47]} Rfe8 {[%emt 0:01:59]} 25. Bxd5 {[%emt 0:04:14]} Re2+ {[%emt 0:02:19]} 26. Kd1 {[%emt 0:00:01]} Re1+ {[%emt 0:03:45]} 27. Kc2 {[%emt 0:02:23]} Rxb1 {[%emt 0:01:54]} 28. Kxb1 {[%emt 0:00:03]} Rc8 {[%emt 0:00:43]} 29. Be4 {[%emt 0:02:21]} Bb4 {[%emt 0:04:31]} 30. d5 {[%emt 0:00:12]} Bd6 {[%emt 0:00:33]} 0-1

[Event "FIDE WCCC Open-08 2024"]
[Site "Montesilvano"]
[Date "2024.11.23"]
[Round "8.25"]
[White "Huzela, Lukyan"]
[Black "Lau, Great Boyou"]
[Result "1-0"]
[ECO "B30"]
[WhiteElo "1651"]
[BlackElo "1514"]
[Annotator "NA RC"]
[PlyCount "91"]
[EventDate "2024.11.18"]
[EventType "swiss"]
[EventCountry "ITA"]
[SourceTitle "playchess.com"]
[Source "ChessBase"]
[SourceQuality "1"]
[TimeControl "5400+30"]

1. e4 {[%emt 0:01:34]} c5 {[%emt 0:00:04]} 2. Nf3 {[%emt 0:00:36]} Nc6 {[%emt 0:00:10]} 3. Bb5 {[%emt 0:00:18]} e6 {[%emt 0:00:14]} 4. O-O {[%emt 0:00:13]} Nge7 {[%emt 0:00:22]} 5. b3 {[%emt 0:01:39]} a6 {[%emt 0:00:21]} 6. Be2 {[%emt 0:01:24]} g6 {[%emt 0:05:05]} 7. Bb2 {[%emt 0:00:09]} Rg8 {[%emt 1:27:44]} 8. Na3 {[%emt 0:01:45]} Bg7 {[%emt 0:00:00]} 9. Nc4 {[%emt 0:02:16]} Bxb2 {[%emt 0:00:00]} 10. Nxb2 {[%emt 0:00:09]} d5 {[%emt 0:00:00]} 11. d3 {[%emt 0:00:06]} d4 {[%emt 0:00:00]} 12. Nc4 {[%emt 0:01:22]} b5 {[%emt 0:00:00]} 13. Nce5 {[%emt 0:01:59]} Nxe5 {[%emt 0:00:00]} 14. Nxe5 {[%emt 0:00:12]} f6 {[%emt 0:00:00]} 15. Ng4 {[%emt 0:01:23]} Nc6 {[%emt 0:00:00]} 16. Bf3 {[%emt 0:01:36]} e5 {[%emt 0:00:00]} 17. Nh6 {[%emt 0:05:25]} Rg7 {[%emt 0:00:00]} 18. Bg4 {[%emt 0:02:28]} Bxg4 {[%emt 0:00:00]} 19. Qxg4 {[%emt 0:00:40]} Qd7 {[%emt 0:00:00]} 20. Qh4 {[%emt 0:01:08]} Qe6 {[%emt 0:00:00]} 21. f4 {[%emt 0:01:21]} Ke7 {[%emt 0:00:00]} 22. f5 {[%emt 0:00:34]} Qd6 {[%emt 0:00:00]} 23. fxg6 {[%emt 0:01:10]} hxg6 {[%emt 0:00:00]} 24. Rf2 {[%emt 0:00:32]} Nb8 {[%emt 0:00:00]} 25. Raf1 {[%emt 0:02:45]} Nd7 {[%emt 0:00:00]} 26. g4 {[%emt 0:03:32]} Rf8 {[%emt 0:00:00]} 27. g5 {[%emt 0:01:32]} Qe6 {[%emt 0:00:00]} 28. gxf6+ {[%emt 0:03:15]} Nxf6 {[%emt 0:00:00]} 29. Qg5 {[%emt 0:00:39]} b4 {[%emt 0:00:00]} 30. Rf3 {[%emt 0:01:51]} a5 {[%emt 0:00:00]} 31. R3f2 {[%emt 0:00:33]} Rh7 {[%emt 0:00:00]} 32. Rxf6 {[%emt 0:00:15]} Rxf6 {[%emt 0:00:00]} 33. Rxf6 {[%emt 0:00:02]} Qxf6 {[%emt 0:00:00]} 34. Ng8+ {[%emt 0:00:08]} Kf7 {[%emt 0:00:00]} 35. Nxf6 {[%emt 0:00:13]} Rh3 {[%emt 0:00:01]} 36. Nd5 {[%emt 0:00:14]} Rf3 {[%emt 0:00:28]} 37. Qe7+ {[%emt 0:00:09]} Kg8 {[%emt 0:00:13]} 38. Nf6+ {[%emt 0:00:08]} Rxf6 {[%emt 0:00:17]} 39. Qxf6 {[%emt 0:00:05]} Kh7 {[%emt 0:00:11]} 40. Kg2 {[%emt 0:00:05]} Kh6 {[%emt 0:00:08]} 41. Kg3 {[%emt 0:00:07]} Kh7 {[%emt 0:00:19]} 42. Kg4 {[%emt 0:00:06]} c4 {[%emt 0:00:16]} 43. Kg5 {[%emt 0:00:06]} c3 {[%emt 0:00:24]} 44. Qf7+ {[%emt 0:00:04]} Kh8 {[%emt 0:00:05]} 45. Kxg6 {[%emt 0:00:14]} a4 {[%emt 0:00:14]} 46. Qg7# {[%emt 0:00:09]} 1-0

[Event "FIDE WCCC Open-08 2024"]
[Site "Montesilvano"]
[Date "2024.11.23"]
[Round "8.26"]
[White "Shroff, Dhairya Amit"]
[Black "Ranganathan, Aadith"]
[Result "0-1"]
[ECO "C56"]
[WhiteElo "1444"]
[BlackElo "1645"]
[Annotator "NA RC"]
[PlyCount "112"]
[EventDate "2024.11.18"]
[EventType "swiss"]
[EventCountry "ITA"]
[SourceTitle "playchess.com"]
[Source "ChessBase"]
[SourceQuality "1"]
[TimeControl "5400+30"]

1. e4 {[%emt 0:00:39]} e5 {[%emt 0:00:31]} 2. Nf3 {[%emt 0:00:41]} Nc6 {[%emt 0:00:09]} 3. d4 {[%emt 0:00:19]} exd4 {[%emt 0:00:06]} 4. Bc4 {[%emt 0:00:14]} Nf6 {[%emt 0:00:17]} 5. e5 {[%emt 0:00:34]} d5 {[%emt 0:00:08]} 6. Bb5 {[%emt 0:00:10]} Ne4 {[%emt 0:00:10]} 7. Nxd4 {[%emt 0:00:26]} Bd7 {[%emt 0:01:51]} 8. Bxc6 {[%emt 0:00:33]} bxc6 {[%emt 0:00:13]} 9. O-O {[%emt 0:00:20]} Bc5 {[%emt 0:00:22]} 10. f3 {[%emt 0:00:40]} Ng5 {[%emt 0:00:31]} 11. Be3 {[%emt 0:00:34]} Ne6 {[%emt 0:09:41]} 12. f4 {[%emt 0:01:24]} Qb8 {[%emt 0:00:46]} 13. f5 {[%emt 0:01:44]} Nxd4 {[%emt 0:00:43]} 14. Bxd4 {[%emt 0:00:16]} Bxd4+ {[%emt 0:01:10]} 15. Qxd4 {[%emt 0:00:21]} Qb6 {[%emt 0:00:09]} 16. c3 {[%emt 0:00:30]} Rb8 {[%emt 0:00:23]} 17. Nd2 {[%emt 0:00:41]} Qxd4+ {[%emt 0:00:11]} 18. cxd4 {[%emt 0:00:06]} Rxb2 {[%emt 0:00:10]} 19. Rab1 {[%emt 0:00:15]} Rxb1 {[%emt 0:00:48]} 20. Rxb1 {[%emt 0:00:23]} Ke7 {[%emt 0:00:32]} 21. Rb7 {[%emt 0:00:53]} Ra8 {[%emt 0:00:47]} 22. Rxc7 {[%emt 0:00:29]} Kd8 {[%emt 0:00:11]} 23. Rb7 {[%emt 0:00:58]} Kc8 {[%emt 0:00:10]} 24. Rb3 {[%emt 0:00:36]} Bxf5 {[%emt 0:00:31]} 25. Rc3 {[%emt 0:01:22]} Kc7 {[%emt 0:00:43]} 26. Ra3 {[%emt 0:01:04]} a6 {[%emt 0:01:42]} 27. Nb3 {[%emt 0:00:49]} Bd3 {[%emt 0:02:56]} 28. Nc5 {[%emt 0:01:58]} Bc4 {[%emt 0:01:59]} 29. Rf3 {[%emt 0:00:50]} f6 {[%emt 0:02:27]} 30. Ne6+ {[%emt 0:00:47]} Kd7 {[%emt 0:00:58]} 31. Nxg7 {[%emt 0:00:10]} fxe5 {[%emt 0:00:39]} 32. dxe5 {[%emt 0:00:10]} d4 {[%emt 0:00:07]} 33. Rf4 {[%emt 0:01:35]} c5 {[%emt 0:00:15]} 34. Rf6 {[%emt 0:04:45]} Rg8 {[%emt 0:01:49]} 35. Rd6+ {[%emt 0:01:03]} Kc7 {[%emt 0:02:43]} 36. Nh5 {[%emt 0:19:40]} Re8 {[%emt 0:00:57]} 37. Rh6 {[%emt 0:01:03]} Rxe5 {[%emt 0:01:29]} 38. Rxh7+ {[%emt 0:00:15]} Kc6 {[%emt 0:00:15]} 39. a4 {[%emt 0:03:37]} d3 {[%emt 0:01:13]} 40. Rh6+ {[%emt 0:02:54]} Be6 {[%emt 0:02:01]} 41. Nf4 {[%emt 0:03:11]} d2 {[%emt 0:00:21]} 42. Rxe6+ {[%emt 0:06:46]} Rxe6 {[%emt 0:00:15]} 43. Nxe6 {[%emt 0:00:20]} d1=Q+ {[%emt 1:08:41]} 44. Kf2 {[%emt 0:00:14]} Qxa4 {[%emt 0:00:00]} 45. Ng7 {[%emt 0:00:10]} Qd4+ {[%emt 0:00:00]} 46. Kf3 {[%emt 0:03:56]} Qxg7 {[%emt 0:00:00]} 47. g4 {[%emt 0:02:27]} a5 {[%emt 0:00:00]} 48. h4 {[%emt 0:03:42]} a4 {[%emt 0:00:00]} 49. h5 {[%emt 0:00:23]} a3 {[%emt 0:00:00]} 50. Kf4 {[%emt 0:00:07]} a2 {[%emt 0:00:00]} 51. g5 {[%emt 0:00:09]} a1=Q {[%emt 0:04:00]} 52. h6 {[%emt 0:00:19]} Qae5+ {[%emt 0:00:00]} 53. Kg4 {[%emt 0:00:12]} Qexg5+ {[%emt 0:00:00]} 54. Kf3 {[%emt 0:00:10]} Qc3+ {[%emt 0:00:00]} 55. Ke2 {[%emt 0:00:16]} Qgd2+ {[%emt 0:00:00]} 56. Kf1 {[%emt 0:00:04]} Qcc1# {[%emt 0:02:30]} 0-1

[Event "FIDE WCCC Open-08 2024"]
[Site "Montesilvano"]
[Date "2024.11.23"]
[Round "8.27"]
[White "Movsisyan, Samvel"]
[Black "Kuncoro, Leo"]
[Result "1-0"]
[ECO "D01"]
[WhiteElo "1604"]
[BlackElo "1726"]
[Annotator "NA RC"]
[PlyCount "127"]
[EventDate "2024.11.18"]
[EventType "swiss"]
[EventCountry "ITA"]
[SourceTitle "playchess.com"]
[Source "ChessBase"]
[SourceQuality "1"]
[TimeControl "5400+30"]

1. d4 {[%emt 0:00:01]} Nf6 {[%emt 0:00:06]} 2. Nc3 {[%emt 0:00:08]} d5 {[%emt 0:00:04]} 3. Bg5 {[%emt 0:00:07]} Nbd7 {[%emt 0:00:05]} 4. e3 {[%emt 0:00:05]} e6 {[%emt 0:00:26]} 5. Bd3 {[%emt 0:00:12]} c5 {[%emt 0:01:37]} 6. Nf3 {[%emt 0:00:19]} c4 {[%emt 0:00:56]} 7. Be2 {[%emt 0:00:05]} h6 {[%emt 0:02:21]} 8. Bh4 {[%emt 0:00:12]} b5 {[%emt 0:01:04]} 9. a3 {[%emt 0:01:43]} a6 {[%emt 0:13:33]} 10. O-O {[%emt 0:00:13]} Be7 {[%emt 0:00:15]} 11. Nd2 {[%emt 0:01:49]} Bb7 {[%emt 0:02:10]} 12. Bg3 {[%emt 0:00:24]} O-O {[%emt 0:03:43]} 13. Bf3 {[%emt 0:00:24]} Qb6 {[%emt 0:01:10]} 14. Re1 {[%emt 0:05:01]} Rfe8 {[%emt 0:06:31]} 15. b3 {[%emt 0:02:12]} Qa5 {[%emt 0:03:17]} 16. b4 {[%emt 0:01:12]} Qb6 {[%emt 0:00:16]} 17. Rb1 {[%emt 0:00:15]} Bc6 {[%emt 0:05:24]} 18. Nf1 {[%emt 0:05:35]} a5 {[%emt 0:10:42]} 19. e4 {[%emt 0:00:38]} dxe4 {[%emt 0:01:15]} 20. Nxe4 {[%emt 0:00:31]} Nxe4 {[%emt 0:00:14]} 21. Bxe4 {[%emt 0:00:05]} Bxe4 {[%emt 0:00:25]} 22. Rxe4 {[%emt 0:00:05]} Nf6 {[%emt 0:00:15]} 23. Re3 {[%emt 0:01:08]} Nd5 {[%emt 0:00:55]} 24. bxa5 {[%emt 0:00:44]} Qxa5 {[%emt 0:08:00]} 25. Qg4 {[%emt 0:02:32]} Nxe3 {[%emt 0:01:09]} 26. Nxe3 {[%emt 0:00:06]} f5 {[%emt 0:06:31]} 27. Qg6 {[%emt 0:02:27]} Bf6 {[%emt 0:03:18]} 28. Be5 {[%emt 0:00:54]} Bxe5 {[%emt 0:01:03]} 29. dxe5 {[%emt 0:00:06]} Qc7 {[%emt 0:12:42]} 30. Rxb5 {[%emt 0:00:15]} Qf7 {[%emt 0:05:50]} 31. Qxf7+ {[%emt 0:00:11]} Kxf7 {[%emt 0:00:06]} 32. Nxc4 {[%emt 0:00:06]} Reb8 {[%emt 0:01:11]} 33. Rb3 {[%emt 0:00:46]} Rxb3 {[%emt 0:01:50]} 34. cxb3 {[%emt 0:00:05]} Rb8 {[%emt 0:03:08]} 35. b4 {[%emt 0:01:28]} Ke7 {[%emt 0:00:36]} 36. Kf1 {[%emt 0:00:43]} Kd7 {[%emt 0:01:48]} 37. Ke2 {[%emt 0:00:09]} Kc6 {[%emt 0:00:59]} 38. Kd3 {[%emt 0:00:11]} Rd8+ {[%emt 0:01:56]} 39. Nd6 {[%emt 0:00:09]} Ra8 {[%emt 0:00:15]} 40. Nc4 {[%emt 0:00:48]} Rd8+ {[%emt 0:00:22]} 41. Nd6 {[%emt 0:04:12]} Ra8 {[%emt 0:01:47]} 42. Nc4 {[%emt 0:01:41]} Rd8+ {[%emt 0:00:28]} 43. Kc3 {[%emt 0:01:01]} Kd5 {[%emt 0:01:10]} 44. Kb3 {[%emt 0:01:57]} g5 {[%emt 0:00:08]} 45. a4 {[%emt 0:00:48]} Kc6 {[%emt 0:00:38]} 46. Nd6 {[%emt 0:00:20]} g4 {[%emt 0:00:21]} 47. b5+ {[%emt 0:00:30]} Kb6 {[%emt 0:00:25]} 48. Kb4 {[%emt 0:00:10]} Ra8 {[%emt 0:00:21]} 49. a5+ {[%emt 0:00:15]} Kc7 {[%emt 0:00:50]} 50. a6 {[%emt 0:00:25]} h5 {[%emt 0:00:15]} 51. Ka5 {[%emt 0:00:20]} Rb8 {[%emt 0:00:53]} 52. a7 {[%emt 0:00:19]} Ra8 {[%emt 0:00:09]} 53. b6+ {[%emt 0:00:06]} Kc6 {[%emt 0:00:08]} 54. Ka6 {[%emt 0:00:06]} f4 {[%emt 0:01:07]} 55. b7 {[%emt 0:00:08]} Rd8 {[%emt 0:00:41]} 56. a8=Q {[%emt 1:12:08]} Rb8 {[%emt 0:00:27]} 57. Qxb8 {[%emt 0:00:00]} f3 {[%emt 0:00:05]} 58. Qc8+ {[%emt 0:00:00]} Kd5 {[%emt 0:00:08]} 59. b8=Q {[%emt 0:01:30]} Kxe5 {[%emt 0:00:26]} 60. Nc4+ {[%emt 0:00:00]} Kf5 {[%emt 0:00:15]} 61. Qf8+ {[%emt 0:00:00]} Ke4 {[%emt 0:00:06]} 62. Qfd6 {[%emt 0:00:00]} e5 {[%emt 0:00:18]} 63. Qbf8 {[%emt 0:00:00]} fxg2 {[%emt 0:00:20]} 64. Nd2# {[%emt 0:00:00]} 1-0

[Event "FIDE WCCC Open-08 2024"]
[Site "Montesilvano"]
[Date "2024.11.23"]
[Round "8.29"]
[White "Chanishvili, Noa"]
[Black "Sahin, Bora"]
[Result "0-1"]
[ECO "D02"]
[WhiteElo "1553"]
[BlackElo "1703"]
[Annotator "NA RC"]
[PlyCount "120"]
[EventDate "2024.11.18"]
[EventType "swiss"]
[EventCountry "ITA"]
[SourceTitle "playchess.com"]
[Source "ChessBase"]
[SourceQuality "1"]
[TimeControl "5400+30"]

1. d4 {[%emt 0:00:05]} d5 {[%emt 0:00:06]} 2. Nf3 {[%emt 0:00:15]} Nf6 {[%emt 0:00:13]} 3. Bf4 {[%emt 0:00:12]} Bf5 {[%emt 0:00:35]} 4. c4 {[%emt 0:01:10]} c6 {[%emt 0:01:10]} 5. Qb3 {[%emt 0:00:52]} Qb6 {[%emt 0:00:27]} 6. Qxb6 {[%emt 0:02:10]} axb6 {[%emt 0:00:10]} 7. Bxb8 {[%emt 0:03:11]} Rxb8 {[%emt 0:00:13]} 8. e3 {[%emt 0:01:00]} e6 {[%emt 0:01:32]} 9. Nbd2 {[%emt 0:01:01]} Ra8 {[%emt 0:01:24]} 10. a3 {[%emt 0:03:03]} Ne4 {[%emt 0:01:48]} 11. Nxe4 {[%emt 0:01:42]} Bxe4 {[%emt 0:00:08]} 12. Nd2 {[%emt 0:01:00]} Bg6 {[%emt 0:02:05]} 13. cxd5 {[%emt 0:02:02]} exd5 {[%emt 0:00:33]} 14. Be2 {[%emt 0:01:07]} b5 {[%emt 0:01:05]} 15. O-O {[%emt 0:01:18]} Bd6 {[%emt 0:00:38]} 16. Nf3 {[%emt 0:01:41]} O-O {[%emt 0:01:39]} 17. Rfc1 {[%emt 0:03:39]} Ra5 {[%emt 0:00:56]} 18. Ra2 {[%emt 0:03:48]} b4 {[%emt 0:01:10]} 19. a4 {[%emt 0:01:47]} b3 {[%emt 0:01:50]} 20. Raa1 {[%emt 0:00:17]} Rfa8 {[%emt 0:01:28]} 21. Bd1 {[%emt 0:00:26]} Rxa4 {[%emt 0:02:01]} 22. Rxa4 {[%emt 0:00:41]} Rxa4 {[%emt 0:00:02]} 23. Bxb3 {[%emt 0:00:40]} Rb4 {[%emt 0:03:26]} 24. Ra1 {[%emt 0:02:37]} Rxb3 {[%emt 0:00:54]} 25. Ra8+ {[%emt 0:00:32]} Bf8 {[%emt 0:00:02]} 26. Ne5 {[%emt 0:00:53]} Rxb2 {[%emt 0:00:09]} 27. h3 {[%emt 0:00:30]} Bf5 {[%emt 0:00:23]} 28. g4 {[%emt 0:01:13]} Be6 {[%emt 0:00:03]} 29. Rb8 {[%emt 0:03:33]} Rb6 {[%emt 0:02:22]} 30. f4 {[%emt 0:02:03]} g6 {[%emt 0:00:39]} 31. Re8 {[%emt 0:10:34]} Kg7 {[%emt 0:00:51]} 32. h4 {[%emt 0:04:07]} Bd6 {[%emt 0:08:24]} 33. g5 {[%emt 0:02:35]} Bxe5 {[%emt 0:00:00]} 34. fxe5 {[%emt 0:00:14]} Rb2 {[%emt 0:00:36]} 35. Re7 {[%emt 0:01:15]} Re2 {[%emt 0:01:45]} 36. Rxb7 {[%emt 0:00:21]} Rxe3 {[%emt 0:00:15]} 37. Rc7 {[%emt 0:00:34]} Re4 {[%emt 0:00:17]} 38. Rxc6 {[%emt 0:00:21]} Rxd4 {[%emt 1:08:11]} 39. Kf2 {[%emt 0:07:12]} Rxh4 {[%emt 0:00:00]} 40. Rc3 {[%emt 0:01:07]} Re4 {[%emt 0:00:00]} 41. Re3 {[%emt 0:01:59]} Rxe3 {[%emt 0:00:00]} 42. Kxe3 {[%emt 0:01:07]} h6 {[%emt 0:00:00]} 43. Kf4 {[%emt 0:00:38]} hxg5+ {[%emt 0:00:00]} 44. Kxg5 {[%emt 0:00:23]} Bf5 {[%emt 0:00:00]} 45. Kf4 {[%emt 0:00:35]} Kf8 {[%emt 0:00:00]} 46. Ke3 {[%emt 0:01:13]} Ke7 {[%emt 0:00:00]} 47. Kf3 {[%emt 0:00:28]} Ke6 {[%emt 0:00:00]} 48. Kf4 {[%emt 0:01:13]} d4 {[%emt 0:00:00]} 49. Kf3 {[%emt 0:00:21]} Kxe5 {[%emt 0:00:00]} 50. Ke2 {[%emt 0:01:02]} Ke4 {[%emt 0:00:00]} 51. Kd2 {[%emt 0:00:12]} d3 {[%emt 0:00:00]} 52. Kd1 {[%emt 0:01:01]} Ke3 {[%emt 0:00:00]} 53. Ke1 {[%emt 0:00:18]} d2+ {[%emt 0:00:00]} 54. Kd1 {[%emt 0:00:40]} Bg4+ {[%emt 0:00:00]} 55. Kc2 {[%emt 0:00:49]} d1=Q+ {[%emt 0:00:00]} 56. Kc3 {[%emt 0:00:31]} Qc1+ {[%emt 0:00:00]} 57. Kb3 {[%emt 0:00:31]} Kd4 {[%emt 0:00:00]} 58. Kb4 {[%emt 0:00:14]} Qb1+ {[%emt 0:00:00]} 59. Ka5 {[%emt 0:00:17]} Kc5 {[%emt 0:00:00]} 60. Ka6 {[%emt 0:00:19]} Qb6# {[%emt 0:00:00]} 0-1

[Event "FIDE WCCC Open-08 2024"]
[Site "Montesilvano"]
[Date "2024.11.23"]
[Round "8.30"]
[White "Agar, Garig"]
[Black "Arsenijevic, Matija"]
[Result "1-0"]
[ECO "B12"]
[WhiteElo "1534"]
[BlackElo "1700"]
[Annotator "NA RC"]
[PlyCount "95"]
[EventDate "2024.11.18"]
[EventType "swiss"]
[EventCountry "ITA"]
[SourceTitle "playchess.com"]
[Source "ChessBase"]
[SourceQuality "1"]
[TimeControl "5400+30"]

1. e4 {[%emt 0:00:02]} c6 {[%emt 0:00:33]} 2. d4 {[%emt 0:00:20]} d5 {[%emt 0:00:12]} 3. e5 {[%emt 0:00:13]} Bf5 {[%emt 0:00:18]} 4. Nd2 {[%emt 0:00:09]} e6 {[%emt 0:00:40]} 5. Nb3 {[%emt 0:00:10]} Nd7 {[%emt 0:00:42]} 6. Nf3 {[%emt 0:00:37]} h6 {[%emt 0:01:00]} 7. Be2 {[%emt 0:00:13]} Ne7 {[%emt 0:00:57]} 8. O-O {[%emt 0:00:24]} Bh7 {[%emt 0:01:00]} 9. Be3 {[%emt 0:00:19]} Nf5 {[%emt 0:00:39]} 10. Rc1 {[%emt 0:01:33]} Be7 {[%emt 0:00:48]} 11. c4 {[%emt 0:01:58]} O-O {[%emt 0:01:09]} 12. cxd5 {[%emt 0:02:05]} cxd5 {[%emt 0:01:03]} 13. Qd2 {[%emt 0:04:25]} Qb6 {[%emt 0:01:39]} 14. Qa5 {[%emt 0:07:12]} Rfc8 {[%emt 0:05:50]} 15. Bb5 {[%emt 0:00:28]} Nf8 {[%emt 0:03:44]} 16. Nfd2 {[%emt 0:01:31]} Qxa5 {[%emt 0:03:01]} 17. Nxa5 {[%emt 0:05:59]} Nxe3 {[%emt 0:01:24]} 18. fxe3 {[%emt 0:00:30]} Bg5 {[%emt 0:02:12]} 19. Kf2 {[%emt 0:01:15]} a6 {[%emt 0:01:15]} 20. Be2 {[%emt 0:02:19]} Bd8 {[%emt 0:16:18]} 21. Nxb7 {[%emt 0:02:57]} Rcb8 {[%emt 0:02:35]} 22. Nxd8 {[%emt 0:07:04]} Rxb2 {[%emt 0:00:52]} 23. Nc6 {[%emt 0:11:30]} Rxd2 {[%emt 0:01:26]} 24. Ne7+ {[%emt 0:00:41]} Kh8 {[%emt 0:00:44]} 25. Ke1 {[%emt 0:01:31]} Rxa2 {[%emt 0:03:04]} 26. Rxf7 {[%emt 0:00:15]} Ng6 {[%emt 0:01:31]} 27. Nxg6+ {[%emt 0:00:39]} Bxg6 {[%emt 0:00:50]} 28. Re7 {[%emt 0:00:11]} Rb8 {[%emt 0:12:32]} 29. Rxe6 {[%emt 0:07:57]} Rbb2 {[%emt 0:01:50]} 30. Bxa6 {[%emt 0:00:20]} Rxg2 {[%emt 0:00:58]} 31. Rxg6 {[%emt 0:00:07]} Rxg6 {[%emt 0:00:26]} 32. Rc8+ {[%emt 0:00:05]} Kh7 {[%emt 0:00:29]} 33. Bd3 {[%emt 0:00:05]} Rxh2 {[%emt 0:00:41]} 34. e6 {[%emt 0:00:20]} Rh1+ {[%emt 0:00:32]} 35. Kd2 {[%emt 0:00:07]} Rh2+ {[%emt 0:00:30]} 36. Kc3 {[%emt 0:00:08]} Rh1 {[%emt 0:00:24]} 37. e7 {[%emt 0:01:07]} Rc1+ {[%emt 0:00:15]} 38. Bc2 {[%emt 0:00:02]} Rxc2+ {[%emt 0:00:38]} 39. Kxc2 {[%emt 0:00:04]} Re6 {[%emt 0:00:17]} 40. e8=Q {[%emt 0:00:06]} Rxe8 {[%emt 0:00:12]} 41. Rxe8 {[%emt 0:00:01]} g5 {[%emt 0:00:14]} 42. Re6 {[%emt 0:00:22]} h5 {[%emt 0:00:25]} 43. Kd2 {[%emt 0:01:23]} g4 {[%emt 0:00:49]} 44. Ke2 {[%emt 0:00:09]} h4 {[%emt 0:00:18]} 45. Kf2 {[%emt 0:00:13]} h3 {[%emt 0:00:42]} 46. Kg3 {[%emt 0:00:09]} Kg7 {[%emt 0:35:52]} 47. Ra6 {[%emt 0:00:05]} Kf7 {[%emt 0:00:00]} 48. Kxg4 {[%emt 0:00:16]} 1-0